{"text_format":"1","workbook":"xlsx","n_sheets":7,"sheets":["Ремонт","Сводка","ОТЧЁТ","Адрес","40 лет Победы,94","40 лет Победы,94А","40 лет Победы,96"],"not_rendered":{"charts":0,"images":0,"macros":1,"external_links":0,"defined_names":10,"comments":3,"pivot_tables":0},"unopened":[],"bounds":{"document_bytes":16777216,"sheet_cells":100000,"rows_first":2000,"rows_last":500,"rows_between":2000,"halvings":0,"cell_chars":16384,"cell_head_chars":4096},"cells_cut":0,"cells_raw":0,"read":"whole","date_system":"1900"}

{"sheet":"Ремонт","index":0,"n_rows":17,"n_cols":15,"rows_kept":17,"cut":false,"hidden":false,"merged":[]}
[]
["№ п/п","Период проведения работ","Улица","№ дома","Фамилия И.О.","Виды работ","ПСД, 1 %","Заработанная плата, руб.","Начисления (сметная прибыль), руб.","Материал +ТЗР 4%, руб.","ЭММ, в т.ч. ЗПМ (общеэксплуатационные расходы), руб.","Прочие (накладные расходы), руб.","возмещение НДС, руб.","Итого (без НДС), руб.","Итого (с НДС), руб."]
[{"$f":"IF(ISBLANK(B3),\"\",MAX(A$2:A2)+1)","v":1},"2016-01-01","40 лет победы",94,"Филиал АО \"Газпром газораспределение Чебоксары\" в г. Алатыре","Замена участка внутриподъездного газопровода низкого давления (30.11.2015 г.)",null,null,null,null,null,null,null,{"$f":"SUM(G3:L17)","v":0},5570.8743999999997]
[{"$f":"IF(ISBLANK(B4),\"\",MAX(A$2:A3)+1)","v":2},"2016-01-19","40 лет победы",94,"ООО \"Технолифт\"","Замена редуктора лебедки пассажирского лифта",null,null,null,null,null,null,null,{"$f":"SUM(G4:L17)","v":0},145877.14599999998]
[{"$f":"IF(ISBLANK(B5),\"\",MAX(A$2:A4)+1)","v":3},"2016-01-21","40 лет победы",100,"ИП Дедкова И.В.","Оказание автотранспортных услуг",null,null,null,null,null,null,null,{"$f":"SUM(G5:L17)","v":0},703.8818]
[{"$f":"IF(ISBLANK(B6),\"\",MAX(A$2:A5)+1)","v":4},"2016-01-21","40 лет победы","94А","ИП Дедкова И.В.","Оказание автотранспортных услуг",null,null,null,null,null,null,null,{"$f":"SUM(G6:L17)","v":0},933.5569999999999]
[{"$f":"IF(ISBLANK(B7),\"\",MAX(A$2:A6)+1)","v":5},"2016-01-21","40 лет победы","94А","ИП Дедкова И.В.","Оказание автотранспортных услуг",null,null,null,null,null,null,null,{"$f":"SUM(G7:L17)","v":0},1017.5612]
[{"$f":"IF(ISBLANK(B8),\"\",MAX(A$2:A7)+1)","v":6},"2016-01-28","40 лет победы",96,"ИП Бетехтин Ю.А.","Замена рубильника в доме",null,null,null,null,null,null,null,{"$f":"SUM(G8:L17)","v":0},30242.9398]
[{"$f":"IF(ISBLANK(B9),\"\",MAX(A$2:A8)+1)","v":7},"2016-01-31","40 лет победы",96,"ООО \"Жилремстрой\"","Текущий ремонт теплотрассы (24.12.2015 г.)",null,null,null,null,null,null,null,{"$f":"SUM(G9:L17)","v":0},89734.150200000018]
[{"$f":"IF(ISBLANK(B10),\"\",MAX(A$2:A9)+1)","v":8},"2016-01-31","40 лет победы",96,"Репкин И.Л.","Ремонт трубопровода горячего водоснабжения",null,null,null,null,null,null,null,{"$f":"SUM(G10:L17)","v":0},13627.72]
[{"$f":"IF(ISBLANK(B11),\"\",MAX(A$2:A10)+1)","v":9},"2016-01-31","40 лет победы",96,"Репкин И.Л.","Ремонт трубопровода канализации и замена ламп уличного освещения",null,null,null,null,null,null,null,{"$f":"SUM(G11:L16)","v":0},2258.88]
[{"$f":"IF(ISBLANK(B12),\"\",MAX(A$2:A11)+1)","v":10},"2016-01-31","40 лет победы",96,"Репкин И.Л.","Ремонт системы отопления",null,null,null,null,null,null,null,{"$f":"SUM(G12:L17)","v":0},12310.69]
[{"$f":"IF(ISBLANK(B13),\"\",MAX(A$2:A12)+1)","v":11},"2016-01-31","40 лет победы",96,"Кузнецов А.А.","Ремонт системы отопления",null,null,null,null,null,null,null,{"$f":"SUM(G13:L17)","v":0},5400.7]
[{"$f":"IF(ISBLANK(B14),\"\",MAX(A$2:A13)+1)","v":12},"2016-01-31","40 лет победы",96,"Кузнецов А.А.","Ремонт канализации",null,null,null,null,null,null,null,{"$f":"SUM(G14:L17)","v":0},1568.2671999999998]
[{"$f":"IF(ISBLANK(B15),\"\",MAX(A$2:A14)+1)","v":13},"2016-01-31","40 лет победы",96,"Репкин И.Л.","Замена циркуляционного насоса на трубопроводе горячего водоснабжения",null,null,null,null,null,null,null,{"$f":"SUM(G15:L17)","v":0},22189.486999999997]
[{"$f":"IF(ISBLANK(B16),\"\",MAX(A$2:A15)+1)","v":14},"2016-02-01","40 лет победы",96,"Кузнецов А.А.","Смена запорной арматуры на трубопроводе горячего водоснабжении",null,null,null,null,null,null,null,{"$f":"SUM(G16:L17)","v":0},803.76880000000006]
[{"$f":"IF(ISBLANK(B17),\"\",MAX(A$2:A16)+1)","v":15},"2016-03-01","40 лет победы",96,"Кузнецов А.А.","Ремонт трубопровода канализации",null,null,null,null,null,null,null,{"$f":"SUM(G17:L17)","v":0},39749.291199999992]

{"sheet":"Сводка","index":1,"n_rows":6,"n_cols":5,"rows_kept":6,"cut":false,"hidden":false,"merged":[[0,0,0,4]]}
["Отчет о начислениях по текущему ремонту МЖД за 2016 год"]
["Наименование улицы","№ дома","Остаток средств по текущему ремонту на 01.01.2016 г., руб.","Начислено за 2016 г., руб.","Выполнено работ по текущему ремонту, руб."]
["40 лет победы",94,-52734.899999999965,97689.12,151448.02039999998]
["40 лет победы","94А",273918.49,76087.64,1951.1181999999999]
["40 лет победы",96,56028.2,26558.999999999993,217885.89420000004]
["ИТОГО:",null,{"$f":"SUM(C3:C5)","v":277211.79000000004},{"$f":"SUM(D3:D5)","v":200335.76},{"$f":"SUM(E3:E5)","v":371285.03280000004}]

{"sheet":"ОТЧЁТ","index":2,"n_rows":17,"n_cols":11,"rows_kept":17,"cut":false,"hidden":false,"merged":[]}
[null,"Список домов на 2016"]
[null,"Наименование улицы","№ дома","Остаток средств по текущему ремонту на 01.01.2016 г., руб.","Начислено за 2016 г., руб.","Выполнено работ по текущему ремонту, руб.","Месяц","Описание работ","Стоимость, руб.","Остаток средств по текущему ремонту на 01.01.2017 г., руб."]
[1,"40 лет победы",94,null,null,null,"2016-01-01","Замена участка внутриподъездного газопровода низкого давления (30.11.2015 г.)",5570.8743999999997,null,{"$f":"ОТЧЁТ!H3&\" \"&\"(\"&TEXT(ОТЧЁТ!G3,\"ММММ\")&\")\"","v":"Замена участка внутриподъездного газопровода низкого давления (30.11.2015 г.) (Январь)"}]
[2,"40 лет победы",94,-52734.899999999965,97689.12,151448.02039999998,"2016-01-19","Замена редуктора лебедки пассажирского лифта",145877.14599999998,-106493.80039999995,{"$f":"H4&\" \"&\"(\"&TEXT(G4,\"ММММ\")&\")\"","v":"Замена редуктора лебедки пассажирского лифта (Январь)"}]
[6,"40 лет победы",96,null,null,null,"2016-01-28","Замена рубильника в доме",30242.9398,null,{"$f":"H5&\" \"&\"(\"&TEXT(G5,\"ММММ\")&\")\"","v":"Замена рубильника в доме (Январь)"}]
[7,"40 лет победы",96,null,null,null,"2016-01-31","Текущий ремонт теплотрассы (24.12.2015 г.)",89734.150200000018,null,"Текущий ремонт теплотрассы (24.12.2015 г.) (Январь)"]
[8,"40 лет победы",96,null,null,null,"2016-01-31","Ремонт трубопровода горячего водоснабжения",13627.72,null,"Ремонт трубопровода горячего водоснабжения (Январь)"]
[9,"40 лет победы",96,null,null,null,"2016-01-31","Ремонт трубопровода канализации и замена ламп уличного освещения",2258.88,null,"Ремонт трубопровода канализации и замена ламп уличного освещения (Январь)"]
[10,"40 лет победы",96,null,null,null,"2016-01-31","Ремонт системы отопления",12310.69,null,"Ремонт системы отопления (Январь)"]
[11,"40 лет победы",96,null,null,null,"2016-01-31","Ремонт системы отопления",5400.7,null,"Ремонт системы отопления (Январь)"]
[12,"40 лет победы",96,null,null,null,"2016-01-31","Ремонт канализации",1568.2671999999998,null,"Ремонт канализации (Январь)"]
[13,"40 лет победы",96,null,null,null,"2016-01-31","Замена циркуляционного насоса на трубопроводе горячего водоснабжения",22189.486999999997,null,"Замена циркуляционного насоса на трубопроводе горячего водоснабжения (Январь)"]
[14,"40 лет победы",96,null,null,null,"2016-02-01","Смена запорной арматуры на трубопроводе горячего водоснабжении",803.76880000000006,null,"Смена запорной арматуры на трубопроводе горячего водоснабжении (Февраль)"]
[15,"40 лет победы",96,56028.2,26558.999999999993,217885.89420000004,"2016-03-01","Ремонт трубопровода канализации",39749.291199999992,-135298.69420000006,"Ремонт трубопровода канализации (Март)"]
[3,"40 лет победы",100,null,null,703.8818,"2016-01-21","Оказание автотранспортных услуг",703.8818,-703.8818,"Оказание автотранспортных услуг (Январь)"]
[4,"40 лет победы","94А",null,null,null,"2016-01-21","Оказание автотранспортных услуг",933.5569999999999,null,"Оказание автотранспортных услуг (Январь)"]
[5,"40 лет победы","94А",273918.49,76087.64,1951.1181999999999,"2016-01-21","Оказание автотранспортных услуг",1017.5612,348055.01179999998,"Оказание автотранспортных услуг (Январь)"]

{"sheet":"Адрес","index":3,"n_rows":4,"n_cols":4,"rows_kept":4,"cut":false,"hidden":false,"merged":[]}
["Улицы","Улица","Дом"]
["40 лет победы","40 лет победы",94,{"$f":"\"г.Алатырь, \"&B2&\",\"&\" д.\"&C2","v":"г.Алатырь, 40 лет победы, д.94"}]
["III Интернационала","40 лет победы","94А",{"$f":"\"г.Алатырь, \"&B3&\",\"&\" д.\"&C3","v":"г.Алатырь, 40 лет победы, д.94А"}]
[null,"40 лет победы",96,"г.Алатырь, 40 лет победы, д.96"]

{"sheet":"40 лет Победы,94","index":4,"n_rows":48,"n_cols":2,"rows_kept":48,"cut":false,"hidden":false,"merged":[[1,0,1,1],[2,0,2,1]]}
[]
["ОТЧЕТ"]
["ООО \"Управление ЖКХ\" перед собственниками о стоимости работ и услуг по содержанию и ремонту жилья за период с 01.01.2016 по 31.12.2016 года"]
[]
["Характеристика многоквартирного дома"]
["Адрес МКД","г.Алатырь, 40 лет победы, д.94"]
["Год ввода в эксплуатацию",1990]
["Количество подъездов",3]
["Количество проживающих, чел.",132]
["Количество квартир",60]
["Количество этажей",5]
["Количество лифтов",0]
["Материал стен","панель"]
["Материал крыши","рулонные наплавляемые материалы"]
["Общая полезная площадь МКД, кв.м.",3204.96]
["Действующий тариф на содержание жилья",11.63]
[]
["Дебиторская задолженность по дому по состоянию на 01.01.2016",345231.32]
["                                                           по состоянию на 31.12.2016",232133.29]
["Затраты ООО \"Управление ЖКХ\" по оплате услуг ресурсоснабжающих организаций",{"$f":"B21","v":633776.62}]
["из них предъявлено собственникам и нанимателям",633776.62]
["из них оплачено собственниками",750349.43]
[]
["Начислено по статье \"Содержание помещений\"",447284.34]
["Оплачено собственниками за услуги по содержанию помещений",444515.75]
[]
["Предоставлено услуг по управлению, содержанию общего имущества МКД"]
["Наименование статей расходов","затраты в год, руб."]
["Техническое обслуживание внутридомовых инженерных сетей и конструктивных элементов дома:",{"$f":"B30+B31+B32","v":147478.25}]
["Обслуживание конструктивных элементов дома, сантехнического, инженерного, электрооборудования и электрических сетей, техническое обслуживание приборов учета энергоресурсов",126207.93]
["Расходы по эксплуатации, свидетельствованию лифтов",0]
["Аварийно-диспетчерское обслуживание",21270.32]
["Санитарное содержание мест общего пользования и придомовых территорий:",{"$f":"B34+B35","v":161347.95000000001}]
["Уборка и благоустройство придомовой территории, мест общего пользования, дератизация и дезинсекция",123389.05]
["Сбор и вывоз ТБО, крупногабаритного мусора",37958.9]
["Расходы по управлению",100990.56]
["Итого расходов",{"$f":"B29+B33+B36","v":409816.76}]
[]
["Начислено по статье \"Текущий ремонт\"",96150.720000000001]
["Начислено по статье \"Разовые сборы\"",1538.4]
["Доход от размещения оборудования связи, аренды имущества",0]
["Оплачено собственниками за услуги по ремонту, разовые сборы",96982.9]
[]
["Предоставлено услуг по текущему ремонту МКД"]
["Наименование статей расходов","затраты в год, руб."]
["Замена участка внутриподъездного газопровода низкого давления (30.11.2015 г.) (Январь)",5570.8743999999997]
["Замена редуктора лебедки пассажирского лифта (Январь)",145877.14599999998]
["Итого расходов",{"$f":"SUM(B46:B47)","v":151448.02039999998}]

{"sheet":"40 лет Победы,94А","index":5,"n_rows":48,"n_cols":2,"rows_kept":48,"cut":false,"hidden":false,"merged":[[1,0,1,1],[2,0,2,1]]}
[]
["ОТЧЕТ"]
["ООО \"Управление ЖКХ\" перед собственниками о стоимости работ и услуг по содержанию и ремонту жилья за период с 01.01.2016 по 31.12.2016 года"]
[]
["Характеристика многоквартирного дома"]
["Адрес МКД","г.Алатырь, 40 лет победы, д.94А"]
["Год ввода в эксплуатацию",2010]
["Количество подъездов",3]
["Количество проживающих, чел.",89]
["Количество квартир",60]
["Количество этажей",5]
["Количество лифтов",0]
["Материал стен","кирпич"]
["Материал крыши","асбестоцементные плиты"]
["Общая полезная площадь МКД, кв.м.",2484.9]
["Действующий тариф на содержание жилья",11.63]
[]
["Дебиторская задолженность по дому по состоянию на 01.01.2016",60946.1]
["                                                           по состоянию на 31.12.2016",47370.53]
["Затраты ООО \"Управление ЖКХ\" по оплате услуг ресурсоснабжающих организаций",{"$f":"B21","v":3381.74}]
["из них предъявлено собственникам и нанимателям",3381.74]
["из них оплачено собственниками",3323.13]
[]
["Начислено по статье \"Содержание помещений\"",346793.89]
["Оплачено собственниками за услуги по содержанию помещений",358018.25]
[]
["Предоставлено услуг по управлению, содержанию общего имущества МКД"]
["Наименование статей расходов","затраты в год, руб."]
["Техническое обслуживание внутридомовых инженерных сетей и конструктивных элементов дома:",{"$f":"B30+B31+B32","v":114344.23}]
["Обслуживание конструктивных элементов дома, сантехнического, инженерного, электрооборудования и электрических сетей, техническое обслуживание приборов учета энергоресурсов",97852.73]
["Расходы по эксплуатации, свидетельствованию лифтов",0]
["Аварийно-диспетчерское обслуживание",16491.5]
["Санитарное содержание мест общего пользования и придомовых территорий:",{"$f":"B34+B35","v":125097.82}]
["Уборка и благоустройство придомовой территории, мест общего пользования, дератизация и дезинсекция",95667.17]
["Сбор и вывоз ТБО, крупногабаритного мусора",29430.65]
["Расходы по управлению",78300.960000000006]
["Итого расходов",{"$f":"B29+B33+B36","v":317743.01}]
[]
["Начислено по статье \"Текущий ремонт\"",74547.009999999995]
["Начислено по статье \"Разовые сборы\"",1540.63]
["Доход от размещения оборудования связи, аренды имущества",0]
["Оплачено собственниками за услуги по ремонту, разовые сборы",78497.48]
[]
["Предоставлено услуг по текущему ремонту МКД"]
["Наименование статей расходов","затраты в год, руб."]
["Оказание автотранспортных услуг (Январь)",933.5569999999999]
["Оказание автотранспортных услуг (Январь)",1017.5612]
["Итого расходов",{"$f":"SUM(B46:B47)","v":1951.1181999999999}]

{"sheet":"40 лет Победы,96","index":6,"n_rows":56,"n_cols":2,"rows_kept":56,"cut":false,"hidden":false,"merged":[[1,0,1,1],[2,0,2,1]]}
[]
["ОТЧЕТ"]
["ООО \"Управление ЖКХ\" перед собственниками о стоимости работ и услуг по содержанию и ремонту жилья за период с 01.01.2016 по 31.12.2016 года"]
[]
["Характеристика многоквартирного дома"]
["Адрес МКД","г.Алатырь, 40 лет победы, д.96"]
["Год ввода в эксплуатацию",1979]
["Количество подъездов",3]
["Количество проживающих, чел.",16]
["Количество квартир",18]
["Количество этажей",2]
["Количество лифтов",0]
["Материал стен","кирпич"]
["Материал крыши","рулонные наплавляемые материалы"]
["Общая полезная площадь МКД, кв.м.",834.13]
["Действующий тариф на содержание жилья",11.63]
[]
["Дебиторская задолженность по дому по состоянию на 01.01.2016",306423.18]
["                                                           по состоянию на 31.12.2016",340022.26]
["Затраты ООО \"Управление ЖКХ\" по оплате услуг ресурсоснабжающих организаций",{"$f":"B21","v":93692.65}]
["из них предъявлено собственникам и нанимателям",93692.65]
["из них оплачено собственниками",90287.8]
[]
["Начислено по статье \"Содержание помещений\"",113241.82]
["Оплачено собственниками за услуги по содержанию помещений",88661.87]
[]
["Предоставлено услуг по управлению, содержанию общего имущества МКД"]
["Наименование статей расходов","затраты в год, руб."]
["Техническое обслуживание внутридомовых инженерных сетей и конструктивных элементов дома:",{"$f":"B30+B31+B32","v":38383.020000000004}]
["Обслуживание конструктивных элементов дома, сантехнического, инженерного, электрооборудования и электрических сетей, техническое обслуживание приборов учета энергоресурсов",32847.160000000003]
["Расходы по эксплуатации, свидетельствованию лифтов",0]
["Аварийно-диспетчерское обслуживание",5535.86]
["Санитарное содержание мест общего пользования и придомовых территорий:",{"$f":"B34+B35","v":41992.78}]
["Уборка и благоустройство придомовой территории, мест общего пользования, дератизация и дезинсекция",32113.51]
["Сбор и вывоз ТБО, крупногабаритного мусора",9879.27]
["Расходы по управлению",26284.03]
["Итого расходов",{"$f":"B29+B33+B36","v":106659.83}]
[]
["Начислено по статье \"Текущий ремонт\"",25024.2]
["Начислено по статье \"Разовые сборы\"",1534.8]
["Доход от размещения оборудования связи, аренды имущества",0]
["Оплачено собственниками за услуги по ремонту, разовые сборы",20944.72]
[]
["Предоставлено услуг по текущему ремонту МКД"]
["Наименование статей расходов","затраты в год, руб."]
["Замена рубильника в доме (Январь)",30242.9398]
["Текущий ремонт теплотрассы (24.12.2015 г.) (Январь)",89734.150200000018]
["Ремонт трубопровода горячего водоснабжения (Январь)",13627.72]
["Ремонт трубопровода канализации и замена ламп уличного освещения (Январь)",2258.88]
["Ремонт системы отопления (Январь)",12310.69]
["Ремонт системы отопления (Январь)",5400.7]
["Ремонт канализации (Январь)",1568.2671999999998]
["Замена циркуляционного насоса на трубопроводе горячего водоснабжения (Январь)",22189.486999999997]
["Смена запорной арматуры на трубопроводе горячего водоснабжении (Февраль)",803.76880000000006]
["Ремонт трубопровода канализации (Март)",39749.291199999992]
["Итого расходов",{"$f":"SUM(B46:B55)","v":217885.89420000004}]